bitfinex/quotes_ETHUSD_20250708
["timestamp","ask_amount","ask_price","bid_price","bid_amount"]
[1751942209963,11.30454448,2536.5,2536.4,0.36598032]
[1751942211396,11.30454448,2536.5,2536.2,0.1968]
[1751942211600,1.3708,2536.5,2536.2,3.314059]
[1751942211804,1.3708,2536.5,2536.3,3.117259]
[1751942212099,1.3708,2536.5,2536.4,3.117259]
[1751942212787,1.3504,2536.7,2536.4,3.117259]
[1751942213187,7.34170411,2536.7,2536.4,3.117259]
[1751942216076,7.34170411,2536.7,2536.5,1.40947401]
[1751942216276,7.34170411,2536.7,2536.4,3.117259]
[1751942216580,1.4124,2536.6,2536.5,4.52673318]
[1751942217303,1.4124,2536.6,2536.4,3.117259]
[1751942217705,5.99130411,2536.5,2536.4,3.117259]
[1751942217883,5.99130411,2536.5,2536.4,4.52707627]
[1751942218925,5.99130411,2536.5,2536.4,3.117259]
[1751942218926,7.35430411,2536.5,2536.4,3.117259]
[1751942219105,7.35430411,2536.5,2535.8,10.0]
[1751942219106,3.94287898,2536.3,2536.1,3.117259]
[1751942219282,3.94287898,2536.3,2535.5,1.4275]
[1751942219283,5.3061326,2536.1,2535.6,3.117259]
[1751942219596,7.35430411,2535.7,2535.6,3.314059]
[1751942219828,7.35430411,2535.9,2535.7,3.117259]
[1751942220536,6.80210411,2536.5,2535.8,0.1968]
[1751942220729,6.80210411,2536.5,2536.2,3.117259]
[1751942221536,6.18810411,2536.5,2536.2,3.117259]
[1751942221708,1.363,2536.6,2536.0,3.117259]
[1751942222039,1.363,2536.6,2536.5,3.117259]
[1751942222521,1.3464,2536.8,2536.5,3.117259]
[1751942222721,5.99130411,2536.7,2536.6,3.117259]
[1751942225741,1.3464,2536.8,2536.6,3.117259]
[1751942226038,1.5497,2537.0,2536.6,3.117259]
[1751942226420,5.99130411,2536.9,2536.6,3.117259]
[1751942226814,1.5497,2537.0,2536.6,3.117259]
[1751942227213,1.5497,2537.0,2536.8,3.117259]
[1751942227414,1.5497,2537.0,2536.6,3.117259]
[1751942227614,1.5497,2537.0,2536.8,3.117259]
[1751942227833,1.5497,2537.0,2536.6,3.117259]
[1751942228033,1.5497,2537.0,2536.8,3.117259]
[1751942228225,5.49136867,2537.0,2536.6,3.117259]
[1751942228420,5.49136867,2537.0,2536.8,3.117259]
[1751942228642,5.49136867,2537.0,2536.6,3.117259]
[1751942228945,5.49136867,2537.0,2536.8,3.117259]
[1751942229240,5.49136867,2537.0,2536.6,3.117259]
[1751942229463,5.49136867,2537.0,2536.8,3.117259]
[1751942229612,5.49136867,2537.0,2536.6,3.117259]
[1751942229810,5.49136867,2537.0,2536.8,3.117259]
[1751942230031,5.49136867,2537.0,2536.6,3.117259]
[1751942230236,5.49136867,2537.0,2536.8,3.117259]
[1751942230446,5.49136867,2537.0,2536.6,3.117259]
[1751942230648,5.49136867,2537.0,2536.8,3.117259]
[1751942230835,5.49136867,2537.0,2536.6,3.117259]
[1751942231033,5.49136867,2537.0,2536.8,3.117259]
[1751942231235,5.49136867,2537.0,2536.7,1.41261183]
[1751942231236,5.49136867,2537.0,2536.6,3.117259]
[1751942231440,5.49136867,2537.0,2536.8,3.117259]
[1751942231623,5.49136867,2537.0,2536.6,3.117259]
[1751942231831,5.49136867,2537.0,2536.8,3.117259]
[1751942232151,5.49136867,2537.0,2536.6,3.117259]
[1751942232340,5.49136867,2537.0,2536.8,3.117259]
[1751942232668,5.49136867,2537.0,2536.6,3.117259]
[1751942232864,1.5497,2537.0,2536.7,1.41350944]
[1751942233147,1.5497,2537.0,2536.8,1.41350944]
[1751942233364,5.49136785,2537.0,2536.5,1.96319306]
[1751942233526,5.49136785,2537.0,2536.7,3.117259]
[1751942233734,5.49136785,2537.0,2536.8,1.41375786]
[1751942233920,5.49136785,2537.0,2536.5,1.96319306]
[1751942234247,5.49136785,2537.0,2536.7,3.117259]
[1751942234449,5.49136785,2537.0,2536.8,1.41368917]
[1751942234614,5.49136785,2537.0,2536.5,1.96319306]
[1751942234820,5.49136785,2537.0,2536.6,1.41376519]
[1751942235020,5.49136785,2537.0,2536.8,3.117259]
[1751942235323,5.49136785,2537.0,2536.6,3.117259]
[1751942235517,5.49136785,2537.0,2536.8,3.117259]
[1751942235824,5.49136785,2537.0,2536.6,3.117259]
[1751942236151,5.49136785,2537.0,2536.8,3.117259]
[1751942236352,5.49136785,2537.0,2536.5,1.96319306]
[1751942236353,5.49136785,2537.0,2536.6,3.117259]
[1751942236554,5.49136785,2537.0,2536.7,1.41389877]
[1751942236764,5.49136785,2537.0,2536.8,1.41389877]
[1751942236935,3.94181875,2536.9,2536.5,1.96319306]
[1751942237251,3.94181875,2536.9,2536.7,3.117259]
[1751942237434,3.94181875,2536.9,2536.8,1.41390558]
[1751942238152,13.2664435,2536.9,2536.8,1.41390558]
[1751942238361,0.1968,2536.8,2536.4,0.1968]
[1751942238535,5.4591958,2536.4,2536.1,1.76639306]
[1751942238733,3.94275359,2536.3,2536.0,1.76639306]
[1751942238937,6.07320952,2536.4,2536.0,1.76639306]
[1751942238938,3.94292164,2536.2,2536.0,1.76639306]
[1751942239136,3.94310342,2536.1,2535.9,1.76639306]
[1751942239348,3.94310342,2536.1,2535.6,3.52847471]
[1751942239349,5.45981766,2536.0,2535.8,1.76639306]
[1751942239520,1.5166,2536.0,2535.8,1.76639306]
[1751942239857,1.5166,2536.0,2535.7,1.76639306]
[1751942243155,5.45983228,2536.0,2535.7,1.76639306]
[1751942243361,5.45983228,2536.0,2535.6,1.76639306]
[1751942243859,1.5166,2536.0,2535.6,1.76639306]
[1751942244358,1.5166,2536.0,2535.5,1.76639306]
[1751942248238,1.5166,2536.0,2535.4,12.38039306]
[1751942248439,1.5166,2536.0,2535.7,0.1968]
[1751942248853,5.98180081,2535.9,2535.7,0.1968]
[1751942250473,5.98180081,2536.1,2535.5,1.76639306]
[1751942250771,5.98180081,2536.1,2535.8,0.1968]
[1751942256572,1.6191,2536.2,2535.8,0.1968]
[1751942256777,3.94218708,2536.7,2536.0,0.1968]
[1751942256778,6.79160081,2536.4,2536.0,0.1968]
[1751942259085,2.6,2536.2,2536.0,0.1968]
[1751942260284,2.6,2536.2,2536.0,3.94308327]
[1751942260486,0.001,2536.5,2536.1,1.7101]
[1751942260844,0.001,2536.5,2536.4,0.1968]
[1751942270158,1.6438,2536.5,2536.1,1.76639306]
[1751942270490,1.6438,2536.5,2535.9,2.35231647]
[1751942270491,5.98180081,2536.2,2536.0,0.1968]
[1751942270671,5.98180081,2536.1,2536.0,0.1968]
[1751942271758,7.57330081,2536.1,2536.0,0.1968]
[1751942271960,7.57330081,2536.1,2535.7,11.96319306]
[1751942272161,5.98180081,2535.9,2535.7,11.96319306]
[1751942272855,5.98180081,2535.9,2535.7,1.96319306]
[1751942276690,7.57330081,2536.1,2535.7,1.96319306]
[1751942278895,6.17860081,2536.2,2535.7,1.96319306]
[1751942279261,6.17860081,2536.2,2535.8,1.76639306]
[1751942281564,1.6517,2536.3,2535.8,3.19794401]
[1751942281772,6.17860081,2536.4,2535.9,1.8612]
[1751942283098,0.001,2536.5,2536.0,1.76639306]
[1751942283279,0.001,2536.5,2536.2,0.1968]
[1751942285498,1.101,2536.5,2536.2,0.1968]
[1751942289998,1.101,2536.5,2536.4,0.1968]
[1751942290972,0.001,2536.5,2536.4,0.1968]
[1751942300996,0.001,2536.5,2536.4,4.1393958]
[1751942301314,0.001,2536.5,2536.4,12.67337939]
[1751942301482,0.001,2536.5,2536.4,12.63395344]
[1751942301812,0.001,2536.5,2536.4,16.57654924]
[1751942302412,0.001,2536.5,2536.4,15.0101243]
[1751942302605,0.001,2536.5,2536.4,14.18037086]
[1751942303114,0.001,2536.5,2536.4,12.57297086]
[1751942304808,0.001,2536.5,2536.4,12.57497086]
[1751942306086,0.001,2536.5,2536.4,12.57512469]
[1751942306716,0.001,2536.5,2536.4,16.51772049]
[1751942306924,0.001,2536.5,2536.4,15.17492363]
[1751942307221,0.001,2536.5,2536.4,17.35319474]
[1751942307428,0.001,2536.5,2536.4,21.29111121]
[1751942310721,0.001,2536.5,2536.4,21.84111121]
[1751942310924,0.001,2536.5,2536.4,19.48879474]
[1751942311730,0.001,2536.5,2536.4,25.47059555]
[1751942311931,0.001,2536.5,2536.4,23.01726945]
[1751942312122,0.001,2536.5,2536.4,19.48879474]
[1751942315730,0.001,2536.5,2536.4,23.01350957]
[1751942315931,0.001,2536.5,2536.4,19.48879474]
[1751942316630,0.001,2536.5,2536.4,23.01308051]
[1751942317021,0.001,2536.5,2536.4,23.30475539]
[1751942317403,0.001,2536.5,2536.4,19.78046962]
[1751942317603,0.001,2536.5,2536.4,23.30454557]
[1751942318627,0.001,2536.5,2536.4,19.78046962]
[1751942322729,0.001,2536.5,2536.4,23.30532242]
[1751942323331,0.001,2536.5,2536.4,19.78046962]
[1751942327540,0.001,2536.5,2536.4,14.38419894]
[1751942327740,0.001,2536.5,2536.4,10.8098]
[1751942327945,0.001,2536.5,2536.4,13.1616635]
[1751942328144,0.001,2536.5,2536.4,1.96302588]
[1751942328439,0.001,2536.5,2536.4,2.57402588]
[1751942329428,0.001,2536.5,2536.4,1.96302588]
[1751942329632,0.001,2536.5,2536.4,2.57402588]
[1751942330015,0.001,2536.5,2536.4,0.8098]
[1751942331344,0.001,2536.5,2536.4,2.57402588]
[1751942333148,0.001,2536.5,2536.4,0.8098]
[1751942333344,0.001,2536.5,2536.4,0.1988]
[1751942333550,1.5874,2536.5,2536.4,0.1988]
[1751942333851,1.5874,2536.5,2536.4,0.613]
[1751942339545,1.5874,2536.5,2536.4,0.002]
[1751942341029,5.52984037,2536.5,2536.4,0.002]
[1751942341255,1.5874,2536.5,2536.4,0.002]
[1751942352770,0.001,2536.5,2536.4,0.002]
[1751942355443,5.57974037,2536.5,2536.4,0.002]
[1751942355773,6.1458844,2536.5,2536.4,0.002]
[1751942358445,16.1458844,2536.5,2536.4,0.002]
[1751942358969,16.6958844,2536.5,2536.4,0.002]
[1751942360976,16.6958844,2536.5,2535.8,0.002]
[1751942360977,5.44397316,2535.9,2535.8,0.002]
[1751942361274,11.62257397,2535.9,2535.8,0.002]
[1751942364045,7.67920081,2535.9,2535.8,0.002]
[1751942364542,11.62257397,2535.9,2535.8,0.002]
[1751942365175,7.67920081,2535.9,2535.8,0.002]
[1751942365675,11.62257397,2535.9,2535.8,0.002]
[1751942365877,7.67920081,2535.9,2535.8,0.002]
[1751942366977,11.62257397,2535.9,2535.8,0.002]
[1751942369899,7.67920081,2535.9,2535.8,0.002]
[1751942370258,6.17860081,2535.9,2535.8,0.002]
[1751942374577,10.12197397,2535.9,2535.8,0.002]
[1751942374967,6.17860081,2535.9,2535.8,0.002]
[1751942375168,10.12197397,2535.9,2535.8,0.002]
[1751942375680,11.72867397,2535.9,2535.8,0.002]
[1751942376393,12.09739616,2535.9,2535.8,0.002]
[1751942382401,2.17222219,2535.9,2535.8,0.002]
[1751942382893,8.154023,2535.9,2535.8,0.002]
[1751942383287,12.09739616,2535.9,2535.8,0.002]
[1751942383488,8.154023,2535.9,2535.8,0.002]
[1751942383686,12.09739616,2535.9,2535.8,0.002]
[1751942384390,8.154023,2535.9,2535.8,0.002]
[1751942384786,12.09739616,2535.9,2535.8,0.002]
[1751942388707,22.09739616,2535.9,2535.8,0.002]
[1751942389198,3.94415082,2535.4,2535.3,0.002]
[1751942389406,10.12275163,2535.4,2535.3,0.002]
[1751942392289,10.49253832,2535.4,2535.3,0.002]
[1751942393409,10.49240753,2535.4,2535.3,0.002]
[1751942393908,20.49240753,2535.4,2535.3,0.002]
[1751942394108,3.94501548,2534.9,2534.7,0.0451908]
[1751942394311,9.92681629,2534.9,2534.7,0.0451908]
[1751942394607,5.98180081,2534.9,2534.7,0.0451908]
[1751942395882,9.92676828,2534.9,2534.7,0.0451908]
[1751942396079,3.94508442,2534.8,2534.7,0.0451908]
[1751942396514,4.14188442,2534.8,2534.7,0.0451908]
[1751942398086,0.1968,2534.8,2534.7,0.0451908]
[1751942399104,5.98180081,2534.9,2534.7,0.0451908]
[1751942399316,6.17860081,2534.9,2534.7,0.0451908]
[1751942403314,3.94508442,2534.8,2534.7,0.0451908]
[1751942404018,15.46888442,2534.8,2534.7,0.0451908]
[1751942404418,15.83758656,2534.8,2534.7,0.0451908]
[1751942405220,16.38758656,2534.8,2534.7,0.0451908]
[1751942405440,10.0,2534.6,2534.4,0.002]
[1751942405593,21.81985434,2534.5,2534.4,0.002]
[1751942405938,21.81982972,2534.5,2534.4,0.002]
[1751942406625,21.4511522,2534.5,2534.4,0.002]
[1751942407943,10.0,2534.5,2534.4,0.002]
[1751942408230,11.5238,2535.1,2534.4,0.002]
[1751942408430,0.1968,2534.9,2534.4,0.002]
[1751942408607,0.1968,2535.1,2534.6,0.1968]
[1751942410443,0.1968,2535.1,2534.6,4.14211373]
[1751942410743,0.1968,2535.2,2534.8,0.1968]
[1751942412541,10.0,2535.7,2535.1,1.5391]
[1751942412846,10.1968,2535.7,2535.2,0.1968]
[1751942413951,10.0,2535.7,2535.1,5.48365678]
[1751942414106,0.1968,2535.8,2535.3,0.1968]
[1751942414312,10.1968,2535.8,2535.3,0.1968]
[1751942414636,10.0,2535.5,2535.3,0.1968]
[1751942414806,3.94441169,2535.3,2534.7,1.5391]
[1751942415022,5.98180081,2534.9,2534.8,0.1968]
[1751942415248,5.98180081,2534.9,2534.7,1.7359]
[1751942415249,6.52413627,2534.9,2534.7,1.7359]
[1751942415449,5.98180081,2534.9,2534.7,1.7359]
[1751942415857,5.98180081,2534.9,2534.7,0.1968]
[1751942416651,0.1968,2535.1,2534.7,0.1968]
[1751942419739,1.5617,2535.0,2534.7,0.1968]
[1751942420138,0.54233546,2535.0,2534.7,0.1968]
[1751942420351,0.1968,2535.1,2534.7,0.1968]
[1751942422455,0.1968,2535.1,2534.8,5.45740907]
[1751942422660,0.001,2535.2,2534.8,1.7092]
[1751942423281,0.001,2535.2,2534.8,2.47257444]
[1751942423438,0.001,2535.2,2535.0,0.1968]
[1751942429836,0.001,2535.2,2534.8,1.5124]
[1751942430066,0.001,2535.2,2534.9,0.1968]
[1751942430283,0.001,2535.2,2534.8,1.5124]
[1751942430446,0.1978,2535.2,2534.8,1.7092]
[1751942430646,0.1978,2535.2,2534.8,0.1968]
[1751942430966,4.14226223,2535.2,2534.8,0.1968]
[1751942431191,13.2808897,2535.1,2534.8,0.1968]
[1751942431343,13.2808897,2535.1,2534.6,1.8471]
[1751942431344,0.1968,2535.0,2534.6,1.8471]
[1751942432979,0.1968,2535.0,2534.6,5.79241642]
[1751942433177,0.001,2535.2,2534.8,0.1968]
[1751942436200,0.001,2535.2,2534.7,1.6136524]
[1751942436478,0.001,2535.2,2535.1,1.771]
[1751942436880,0.001,2535.2,2535.1,5.71561756]
[1751942437279,0.001,2535.2,2535.1,6.68167117]
[1751942438278,0.001,2535.2,2535.1,2.73705361]
[1751942438787,0.001,2535.2,2535.1,6.68167117]
[1751942440361,0.001,2535.2,2535.1,2.73705361]
[1751942440694,0.001,2535.2,2535.1,6.68167117]
[1751942442593,0.001,2535.2,2535.1,2.73705361]
[1751942442891,0.001,2535.2,2535.1,1.771]
[1751942447980,0.001,2535.2,2535.1,0.1968]
[1751942448677,0.001,2535.2,2534.6,3.9620635]
[1751942448884,0.001,2535.2,2534.8,0.1968]
[1751942449404,1.6311,2535.0,2534.8,0.1968]
[1751942452308,12.7321,2535.2,2534.8,0.1968]
[1751942454881,16.67657192,2535.2,2534.8,0.1968]
[1751942455081,12.7321,2535.2,2534.8,0.1968]
[1751942455295,16.6765686,2535.2,2534.8,0.1968]
[1751942456197,3.94482935,2535.0,2534.8,0.1968]
[1751942456403,3.94482935,2535.0,2534.6,0.1988]
[1751942456702,10.0,2535.0,2534.6,0.1988]
[1751942457018,13.94524006,2534.7,2534.6,0.002]
[1751942457909,15.85526093,2534.7,2534.6,0.002]
[1751942459607,18.08594006,2534.7,2534.6,0.002]
[1751942461390,18.45490122,2534.7,2534.6,0.002]
[1751942462727,18.79320695,2534.7,2534.6,0.002]
[1751942464219,18.80325586,2534.7,2534.6,0.002]
[1751942464719,18.45490122,2534.7,2534.6,0.002]
[1751942465021,18.80313813,2534.7,2534.6,0.002]
[1751942465186,18.45490122,2534.7,2534.6,0.002]
[1751942466709,18.08594006,2534.7,2534.6,0.002]
[1751942466909,18.45431216,2534.7,2534.6,0.002]
[1751942467192,18.45432029,2534.7,2534.6,0.002]
[1751942468793,18.08594006,2534.7,2534.6,0.002]
[1751942468994,18.45423539,2534.7,2534.6,0.002]
[1751942470422,19.00423539,2534.7,2534.6,0.002]
[1751942470621,15.49589572,2534.6,2534.5,0.002]
[1751942470921,21.68382537,2534.6,2534.5,0.002]
[1751942471124,22.05212512,2534.6,2534.5,0.002]
[1751942471421,22.40308271,2534.6,2534.5,0.002]
[1751942472295,15.55365139,2534.5,2534.4,0.002]
[1751942472496,16.27290873,2534.5,2534.4,0.002]
[1751942479198,16.27332186,2534.5,2534.4,0.002]
[1751942480616,12.32777047,2534.5,2534.4,0.002]
[1751942480799,10.35095759,2534.5,2534.4,0.002]
[1751942481338,2.6,2534.6,2534.4,0.002]
[1751942481631,9.93587671,2535.1,2534.5,1.6447]
[1751942481792,6.18792965,2534.9,2534.5,1.6447]
[1751942481999,10.0,2534.8,2534.5,1.6447]
[1751942483417,2.2,2534.6,2534.5,1.6447]
[1751942483643,10.0,2534.8,2534.5,1.6447]
[1751942484134,5.99112965,2534.7,2534.5,1.6447]
[1751942485156,5.99112965,2534.7,2534.4,0.1988]
[1751942485349,5.99112965,2534.5,2534.4,0.1988]
[1751942485714,5.99112965,2534.7,2534.4,0.1988]
[1751942488952,5.99112965,2534.7,2534.4,0.002]
[1751942489152,2.2,2534.5,2534.4,0.002]
[1751942489452,6.18792965,2534.7,2534.4,0.002]
[1751942492433,10.0,2535.0,2534.5,1.6459]
[1751942492638,0.36932868,2534.9,2534.6,0.1968]
[1751942492838,10.1968,2535.0,2534.6,0.1968]
[1751942493331,12.2,2534.8,2534.6,0.1968]
[1751942493774,10.0,2534.8,2534.6,0.1968]
[1751942495753,5.99112965,2534.7,2534.5,1.6459]
[1751942498844,5.99112965,2534.7,2534.4,0.1988]
[1751942500629,5.99112965,2534.5,2534.4,0.1988]
[1751942500969,5.99112965,2534.5,2534.4,0.002]
[1751942503445,8.09112965,2534.5,2534.4,0.002]
[1751942503647,5.99112965,2534.5,2534.4,0.002]
[1751942504746,5.99212965,2534.7,2534.4,0.002]
[1751942505065,0.1968,2534.5,2534.4,0.002]
[1751942506650,5.99212965,2534.7,2534.4,1.5303]
[1751942506651,0.001,2534.7,2534.4,1.5303]
[1751942506849,0.1978,2534.7,2534.4,1.5303]
[1751942508972,0.001,2534.7,2534.4,1.7271]
[1751942509170,2.1,2534.5,2534.4,1.7271]
[1751942509471,2.1,2534.5,2534.4,0.1988]
[1751942509769,5.99112965,2534.6,2534.4,0.1988]
[1751942510539,10.0,2534.5,2534.4,0.002]
[1751942510870,14.31557233,2534.5,2534.4,0.002]
[1751942511171,16.23845678,2534.5,2534.4,0.002]
[1751942511541,17.65977925,2534.5,2534.4,0.002]
[1751942512959,19.43353293,2534.5,2534.4,0.002]
[1751942513162,19.98353293,2534.5,2534.4,0.002]
[1751942513354,11.52949241,2534.3,2534.2,0.0431908]
[1751942513554,13.66706814,2534.3,2534.2,0.0431908]
[1751942514276,14.21706814,2534.3,2534.2,0.0431908]
[1751942514574,14.21439492,2534.3,2534.2,0.0431908]
[1751942517965,13.66439492,2534.3,2534.2,0.0431908]
[1751942518281,12.24365801,2534.3,2534.2,0.0431908]
[1751942520581,12.24358541,2534.3,2534.2,0.0431908]
[1751942521157,0.714093,2534.3,2534.2,0.0431908]
[1751942521366,0.36908177,2534.3,2534.2,0.0431908]
[1751942523981,4.31494453,2534.3,2534.2,0.0431908]
[1751942524183,4.66129421,2534.3,2534.2,0.0431908]
[1751942524478,0.71543145,2534.3,2534.2,0.0431908]
[1751942524684,4.66129421,2534.3,2534.2,0.0431908]
[1751942526480,10.36908177,2534.3,2534.2,0.0431908]
[1751942526683,13.94586276,2534.3,2534.2,0.0431908]
[1751942526867,14.31492057,2534.3,2534.2,0.0431908]
[1751942527684,16.18651765,2534.3,2534.2,0.0431908]
[1751942527874,15.84012057,2534.3,2534.2,0.0431908]
[1751942528074,16.18652133,2534.3,2534.2,0.0431908]
[1751942528476,16.18658602,2534.3,2534.2,0.0431908]
[1751942530659,3.94658512,2533.9,2533.7,0.0431908]
[1751942530969,5.99112965,2533.8,2533.7,0.0431908]
[1751942531885,8.09112965,2533.8,2533.7,0.0431908]
[1751942532289,5.99112965,2533.8,2533.7,0.0431908]
[1751942533600,19.93777105,2533.8,2533.7,0.0431908]
[1751942533889,15.99112965,2533.8,2533.7,0.0431908]
[1751942534270,10.0,2533.8,2533.7,0.0431908]
[1751942535481,10.0,2533.8,2533.7,1.6795908]
[1751942535686,0.1968,2533.9,2533.7,1.6795908]
[1751942535882,0.1968,2534.2,2533.7,1.8763908]
[1751942536087,0.001,2534.4,2533.8,3.98602968]
[1751942536303,0.001,2534.4,2534.1,0.1968]
[1751942536997,1.7,2534.3,2534.1,0.1968]
[1751942537502,5.99112965,2534.2,2534.1,0.1968]
[1751942537807,6.18792965,2534.2,2533.8,1.6629]
[1751942538395,5.99112965,2534.0,2533.8,1.6629]
[1751942538999,6.18792965,2534.2,2533.8,1.6629]
[1751942539407,0.36967643,2534.1,2533.8,1.6629]
[1751942539701,0.1968,2534.2,2533.8,1.6629]
[1751942539870,0.1968,2534.2,2533.8,2.2480619]
[1751942540069,0.001,2534.4,2533.9,1.5489]
[1751942540404,0.56757084,2534.4,2533.9,1.7457]
[1751942540565,0.1978,2534.4,2533.9,1.7457]
[1751942541396,0.1978,2534.4,2533.9,0.82886775]
[1751942541603,0.001,2534.4,2534.2,1.7457]
[1751942544612,5.99212965,2534.4,2534.2,0.1968]
[1751942544768,5.99212965,2534.4,2534.0,1.6426]
[1751942544769,0.1968,2534.2,2534.0,1.6426]
[1751942545082,6.18792965,2534.2,2534.0,1.6426]
[1751942546677,0.1968,2534.2,2534.0,1.6426]
[1751942548884,0.1978,2534.2,2534.0,1.6426]
[1751942549786,6.18892965,2534.2,2533.7,0.2399908]
[1751942549980,5.99112965,2533.9,2533.7,0.0431908]
[1751942550378,1.7,2533.8,2533.7,0.0431908]
[1751942551220,3.3237,2533.8,2533.7,0.0431908]
[1751942552094,13.3237,2533.8,2533.7,0.0431908]
[1751942552571,17.63976697,2533.8,2533.7,0.0431908]
[1751942553175,15.93976697,2533.8,2533.7,0.0431908]
[1751942554476,11.99312557,2533.8,2533.7,0.0431908]
[1751942554689,15.93976697,2533.8,2533.7,0.0431908]
[1751942555515,17.63976697,2533.8,2533.7,0.0431908]
[1751942556022,17.2703414,2533.8,2533.7,0.0431908]
[1751942556515,15.5703414,2533.8,2533.7,0.0431908]
[1751942558023,15.93959093,2533.8,2533.7,0.0431908]
[1751942560690,15.93948361,2533.8,2533.7,0.0431908]
[1751942564519,16.48948361,2533.8,2533.7,0.0431908]
[1751942564701,16.82596323,2533.8,2533.7,0.0431908]
[1751942565100,18.24284821,2533.8,2533.7,0.0431908]
[1751942565623,18.24284821,2533.8,2533.6,0.002]
[1751942565624,14.14359717,2533.7,2533.6,0.002]
[1751942565830,14.14359717,2533.7,2533.5,0.002]
[1751942565831,18.40800398,2533.7,2533.5,0.002]
[1751942566141,18.40800398,2533.7,2533.3,0.002]
[1751942566142,16.08916454,2533.4,2533.3,0.002]
[1751942566324,16.99158637,2533.4,2533.3,0.002]
[1751942566518,16.99146357,2533.4,2533.3,0.002]
[1751942567033,16.06042036,2533.3,2533.0,0.002]
[1751942567332,18.1823498,2533.3,2533.0,0.002]
[1751942567509,16.76591939,2533.3,2533.0,0.002]
[1751942567828,16.42956257,2533.3,2533.0,0.002]
[1751942568016,14.69437618,2533.2,2533.0,0.002]
[1751942568194,25.46098568,2533.1,2533.0,0.002]
[1751942568519,27.58146525,2533.1,2533.0,0.002]
[1751942569114,26.87603622,2533.1,2533.0,0.002]
[1751942569503,25.46098568,2533.1,2533.0,0.002]
[1751942569904,25.82926839,2533.1,2533.0,0.002]
[1751942571028,27.52926839,2533.1,2533.0,0.002]
[1751942571530,25.82926839,2533.1,2533.0,0.002]
[1751942572519,25.27926839,2533.1,2533.0,0.002]
[1751942572717,15.92951473,2533.1,2533.0,0.002]
[1751942572902,15.56123202,2533.1,2533.0,0.002]
[1751942573224,14.31581237,2533.1,2533.0,0.002]
[1751942573422,13.94773202,2533.1,2533.0,0.002]
[1751942573625,14.31575891,2533.1,2533.0,0.002]
[1751942573796,13.94773202,2533.1,2533.0,0.002]
[1751942574218,14.31575767,2533.1,2533.0,0.002]
[1751942574918,20.31212748,2533.1,2533.0,0.002]
[1751942575114,16.36439546,2533.1,2533.0,0.002]
[1751942575516,10.0,2533.1,2533.0,0.002]
[1751942575832,15.99636981,2533.1,2533.0,0.002]
[1751942577116,10.0,2533.1,2533.0,0.002]
[1751942577324,15.99636981,2533.1,2533.0,1.5135]
[1751942579017,15.99636981,2533.1,2533.0,0.002]
[1751942582126,10.0,2533.1,2533.0,0.002]
[1751942583534,0.1968,2533.2,2533.0,0.002]
[1751942583705,10.1968,2533.2,2533.0,0.002]
[1751942584107,10.0,2533.2,2533.0,0.002]
[1751942584419,10.0,2533.2,2533.1,1.6238]
[1751942584919,10.0,2533.2,2533.0,0.002]
[1751942586635,5.99636981,2533.1,2533.0,0.002]
[1751942588706,9.94410183,2533.1,2533.0,0.002]
[1751942588912,0.001,2533.8,2533.3,0.55]
[1751942589221,0.001,2533.8,2533.6,1.6215]
[1751942589553,0.001,2533.8,2533.7,5.56829717]
[1751942589715,0.001,2533.8,2533.7,1.6215]
[1751942590041,0.001,2533.8,2533.7,5.58969717]
[1751942590955,0.001,2533.8,2533.7,5.62916514]
[1751942591135,0.001,2533.8,2533.7,1.6429]
[1751942592524,0.001,2533.8,2533.7,2.20189862]
[1751942592948,0.001,2533.8,2533.7,1.6429]
[1751942599071,0.001,2533.8,2533.7,1.8397]
[1751942600356,0.001,2533.8,2533.7,2.20616273]
[1751942601069,0.001,2533.8,2533.7,0.3665606]
[1751942601270,0.001,2533.8,2533.6,0.3665606]
[1751942601565,0.001,2533.8,2533.7,0.3665606]
[1751942601732,0.001,2533.8,2533.6,0.3665606]
[1751942601929,0.001,2533.8,2533.5,0.1968]
[1751942603067,0.001,2533.8,2533.5,0.56353377]
[1751942605142,0.1968,2533.6,2533.2,0.56353377]
[1751942605348,0.1968,2533.6,2533.3,0.36673377]
[1751942605560,0.1968,2533.6,2533.2,0.1968]
[1751942606071,4.14375993,2533.6,2533.2,0.1968]
[1751942606879,4.14375993,2533.6,2533.0,0.002]
[1751942606880,3.94695993,2533.6,2533.0,0.002]
[1751942607080,0.1968,2533.5,2533.0,0.1988]
[1751942608147,1.6323,2533.4,2533.0,0.002]
[1751942608347,0.1968,2533.3,2533.0,0.002]
[1751942610289,1.6533,2533.8,2533.1,1.5294]
[1751942610590,0.1978,2533.8,2533.4,3.94713576]
[1751942610753,0.001,2533.8,2533.7,1.7262]
[1751942611257,0.001,2533.8,2533.7,1.76566797]
[1751942611477,0.001,2533.8,2533.7,1.7262]
[1751942612493,0.001,2533.8,2533.7,5.71246514]
[1751942612809,0.001,2533.8,2533.7,6.28371165]
[1751942613958,0.001,2533.8,2533.7,6.24424368]
[1751942614160,0.001,2533.8,2533.7,2.29744651]
[1751942614471,0.001,2533.8,2533.7,16.24424368]
[1751942617655,0.001,2533.8,2533.7,16.61171202]
[1751942622268,0.001,2533.8,2533.7,12.66491485]
[1751942623125,0.001,2533.8,2533.7,2.66491485]
[1751942623396,0.001,2533.8,2533.7,2.09366834]
[1751942623885,0.001,2533.8,2533.7,1.7262]
[1751942628111,0.001,2533.8,2533.7,5.67299717]
[1751942628608,0.001,2533.8,2533.7,1.76566797]
[1751942629219,0.001,2533.8,2533.7,5.71246514]
[1751942629521,0.001,2533.8,2533.7,7.2772437]
[1751942629882,0.001,2533.8,2533.7,23.81569519]
[1751942630206,0.001,2533.8,2533.7,23.77622722]
[1751942632724,0.001,2533.8,2533.7,17.78777573]